lending/lending_fUSD_20240207
["ID","MTS","AMOUNT","RATE_DAILY","PERIOD"]
[313427166,1707336647514,-250.0,0.00026015,2]
[313427169,1707336647524,-150.0,0.00026079,2]
[313427172,1707336647534,-263.63,0.00026339,2]
[313427175,1707336647543,-3307.4748878,0.00026594,2]
[313427178,1707336647553,-155.0,0.00027397,2]
[313427181,1707336647562,-2398.12385583,0.00028441,2]
[313427185,1707336647575,-909.35103197,0.00028441,2]
[313427188,1707336647584,-600.0,0.00028485,2]
[313427191,1707336647594,-9.68183461,0.00028543,2]
[313427195,1707336647607,-2746.27884926,0.00028543,2]
[313427198,1707336647624,-5399.49975913,0.00028543,2]
[313427202,1707336647636,-15744.539557,0.00028543,2]
[313427205,1707336647645,-263.63,0.00028603,2]
[313427208,1707336647655,-155.0,0.00028767,2]
[313427210,1707336647664,-205.0,0.00028832,2]
[313427212,1707336647674,-2000.0,0.00029737,2]
[313427214,1707336647683,-360.63104588,0.0003,2]
[313427217,1707336647696,-639.36895412,0.0003,2]
[313427220,1707336647706,-150.24,0.00030137,2]
[313427223,1707336647715,-155.0,0.00030137,2]
[313427226,1707336647726,-3307.4748878,0.00030288,2]
[313427229,1707336647735,-263.63,0.00030866,2]
[313427232,1707336647745,-1185.8,0.00031,7]
[313427235,1707336647754,-1000.0,0.00031429,2]
[313427238,1707336647763,-155.0,0.00031507,2]
[313427241,1707336647773,-308.39120649,0.00031644,4]
[313427243,1707336647782,-600.0,0.0003165,2]
[313427246,1707336647792,-57174.9000892,0.000318,3]
[313427249,1707336647801,-200.0,0.0003196,2]
[313427252,1707336647811,-3307.4748878,0.00032135,3]
[313427255,1707336647820,-205.0,0.00032295,8]
[313427259,1707336647831,-1085.75531076,0.00032461,2]
[313427262,1707336647840,-11962.14116744,0.000325,2]
[313427265,1707336647850,-1000.0,0.00032857,2]
[313427268,1707336647860,-248.22952942,0.00032876,6]
[313427271,1707336647869,-1116.52029755,0.00032876,7]
[313427274,1707336647880,-1831.10901808,0.00032876,5]
[313427277,1707336647889,-302.3174486,0.00032876,5]
[313427280,1707336647899,-215.25435034,0.00032876,4]
[313427283,1707336647908,-150.0,0.00032877,30]
[313427286,1707336647917,-150.0,0.00032877,30]
[313427289,1707336647927,-150.0,0.00032877,30]
[313427292,1707336647936,-150.0,0.00032877,30]
[313427294,1707336647945,-150.0,0.00032877,30]
[313427296,1707336647954,-155.0,0.00032877,2]
[313427298,1707336647963,-263.63,0.0003313,2]
[313427300,1707336647972,-5257.33310484,0.00033324,10]
[313427302,1707336647985,-766.93964317,0.00033324,10]
[313427304,1707336647996,-9716.23358567,0.00033324,10]
[313427306,1707336648005,-4328.63924176,0.00033324,10]
[313427308,1707336648015,-1134.41816576,0.00033324,10]
[313427310,1707336648024,-723.05198987,0.00033324,10]
[313427312,1707336648033,-15623.84156591,0.00033324,10]
[313427314,1707336648042,-216.89,0.000337,2]
[313427316,1707336648051,-216.89,0.000337,2]
[313427318,1707336648061,-216.89,0.000337,2]
[313427320,1707336648071,-216.89,0.000337,2]
[313427323,1707336648092,-216.89,0.000337,2]
[313427325,1707336648102,-216.89,0.000337,2]
[313427327,1707336648111,-216.89,0.000337,2]
[313427329,1707336648121,-216.89,0.000337,2]
[313427331,1707336648133,-216.89,0.000337,2]
[313427333,1707336648143,-216.89,0.000337,2]
[313427335,1707336648152,-216.89,0.000337,2]
[313427337,1707336648162,-216.89,0.000337,2]
[313427339,1707336648173,-216.89,0.000337,2]
[313427341,1707336648182,-216.89,0.000337,2]
[313427343,1707336648191,-216.89,0.000337,2]
[313427345,1707336648201,-216.89,0.000337,2]
[313427347,1707336648212,-216.89,0.000337,2]
[313427349,1707336648222,-216.89,0.000337,2]
[313427350,1707336648231,-216.89,0.000337,2]
[313427351,1707336648240,-216.89,0.000337,2]
[313427352,1707336648250,-153.15597352,0.000339,2]
[313427353,1707336648260,-153.15597347,0.000339,2]
[313427354,1707336648270,-153.15597347,0.000339,2]
[313427355,1707336648280,-153.15597347,0.000339,2]
[313427356,1707336648290,-153.15597347,0.000339,2]
[313427357,1707336648300,-153.15597347,0.000339,2]
[313427359,1707336648309,-153.15597347,0.000339,2]
[313427362,1707336648319,-153.15597347,0.000339,2]
[313427364,1707336648328,-153.15597347,0.000339,2]
[313427366,1707336648337,-153.15597347,0.000339,2]
[313427368,1707336648346,-3307.4748878,0.00033983,6]
[313427370,1707336648355,-155.0,0.00034247,2]
[313427372,1707336648365,-1000.0,0.00034286,2]
[313427374,1707336648374,-13229.0,0.000344,3]
[313427376,1707336648384,-153.15597347,0.00034734,2]
[313427378,1707336648393,-600.0,0.00034815,2]
[313427380,1707336648402,-380.08219046,0.0003487,14]
[313427382,1707336648412,-1674.34392439,0.000349,2]
[313427384,1707336648421,-1674.3439243,0.000349,2]
[313427386,1707336648431,-1674.3439243,0.000349,2]
[313427388,1707336648441,-1674.3439243,0.000349,2]
[313427390,1707336648450,-1674.3439243,0.000349,2]
[313427392,1707336648460,-1674.3439243,0.000349,2]
[313427394,1707336648471,-1674.3439243,0.000349,2]
[313427397,1707336648480,-1674.3439243,0.000349,2]
[313427399,1707336648490,-150.0,0.00034999,30]
[313427401,1707336648499,-150.0,0.00034999,30]
[313427403,1707336648508,-150.0,0.00034999,30]
[313427405,1707336648520,-150.0,0.00034999,30]
[313427407,1707336648530,-150.0,0.00034999,2]
[313427409,1707336648539,-150.0,0.00034999,2]
[313427411,1707336648548,-150.0,0.00034999,2]
[313427413,1707336648558,-250.78031568,0.00034999,2]
[313427415,1707336648568,-150.0,0.00034999,2]
[313427417,1707336648578,-98424.81821736,0.00035,7]
[313427420,1707336648598,-1200.0,0.00035,7]
[313427424,1707336648622,-1242.08461943,0.00035,7]
[313427425,1707336648639,-11643.70926284,0.00035,7]
[313427434,1707336648783,-603.18040177,0.00035,7]
[313427437,1707336648796,-1676.44875436,0.00035,7]
[313427439,1707336648809,-9144.89085298,0.00035,7]
[313427442,1707336648822,-11224.02535416,0.00035,7]
[313427444,1707336648834,-13901.05655188,0.00035,7]
[313427465,1707336649020,-525225.52350271,0.00035,7]
[313427665,1707336737474,193.81303919,0.00020607,2]
[313427666,1707336737568,240.65679579,0.00022668,4]
[313427717,1707337542082,-155.0,0.00022543,2]
[313427718,1707337542103,-155.0,0.00022543,2]
[313427719,1707337542122,-155.0,0.00022544,2]
[313427720,1707337542146,-224.0440687,0.00022564,2]
[313427721,1707337542167,-3244.87500001,0.00022564,2]
[313427722,1707337542190,-27733.38092915,0.00022568,2]
[313427724,1707337560327,123.644201,0.00020398,2]
[313427725,1707337560353,31.58920779,0.00020398,2]
[313427728,1707337605186,155.70879883,0.00022468,2]
[313427729,1707337606098,-155.0,0.00022567,2]
[313427730,1707337606120,-2479.69097085,0.00022568,2]
[313427731,1707337606140,-252.1938,0.00022568,2]
[313427732,1707337606159,-224.04406869,0.00022568,2]
[313427733,1707337606179,-86.64944272,0.00022568,2]
[313427734,1707337607469,184.61277895,0.00022468,2]
[313427736,1707337626084,-206.25176241,0.00022567,2]
[313427737,1707337626105,-150.0,0.00022567,2]
[313427738,1707337626126,-150.0,0.00022567,2]
[313427739,1707337626146,-94800.77654338,0.00022568,2]
[313427740,1707337630000,171352.82049315,0.00020398,2]
[313427741,1707337631096,-150.0,0.00022567,2]
[313427742,1707337631117,-10918.43534476,0.00022658,2]
[313427743,1707337631136,-155.0,0.00022664,2]
[313427744,1707337631157,-500.0,0.00022664,2]
[313427745,1707337631176,-536.37733122,0.00022664,2]
[313427746,1707337631196,-432.51651173,0.00022664,2]
[313427747,1707337631216,-374.81233994,0.00022664,2]
[313427748,1707337631236,-174.62906648,0.00022664,2]
[313427749,1707337631257,-156.80824208,0.00022664,2]
[313427750,1707337631279,-1139.78306733,0.00022664,2]
[313427751,1707337631300,-1161.88262757,0.00022664,2]
[313427752,1707337631328,-155.26201102,0.00022664,2]
[313427753,1707337631349,-156.6898714,0.00022664,2]
[313427754,1707337631369,-904.95001434,0.00022665,2]
[313427755,1707337631389,-289.73142306,0.00022666,2]
[313427756,1707337631409,-390.03456693,0.00022666,2]
[313427757,1707337631430,-373.36382355,0.00022666,2]
[313427758,1707337631452,-263.84370514,0.00022666,2]
[313427759,1707337631471,-525.12679006,0.00022666,2]
[313427760,1707337631490,-156.60153268,0.00022666,2]
[313427761,1707337631510,-25691.78879919,0.00022666,2]
[313427762,1707337631532,-150.0,0.00022668,2]
[313427763,1707337631551,-150.0,0.00022668,2]
[313427764,1707337631569,-150.0,0.00022668,2]
[313427765,1707337631588,-150.0,0.00022668,2]
[313427766,1707337631607,-150.0,0.00022668,2]
[313427767,1707337631627,-150.0,0.00022668,2]
[313427768,1707337631646,-150.0,0.00022668,2]
[313427769,1707337631665,-150.0,0.00022668,2]
[313427770,1707337631684,-150.0,0.00022668,2]
[313427771,1707337631704,-150.0,0.00022668,2]
[313427772,1707337631723,-150.0,0.00022668,2]
[313427773,1707337631743,-150.0,0.00022668,2]
[313427774,1707337631761,-150.0,0.00022668,2]
[313427775,1707337631782,-150.0,0.00022668,2]
[313427776,1707337631800,-150.0,0.00022668,2]
[313427777,1707337631819,-150.0,0.00022668,2]
[313427778,1707337631837,-150.0,0.00022668,2]
[313427779,1707337631857,-150.0,0.00022668,2]
[313427780,1707337631877,-150.0,0.00022668,2]
[313427781,1707337631896,-150.0,0.00022668,2]
[313427782,1707337631915,-150.0,0.00022668,2]
[313427783,1707337631935,-150.0,0.00022668,2]
[313427784,1707337631954,-150.0,0.00022668,2]
[313427785,1707337631974,-150.0,0.00022668,2]
[313427786,1707337631993,-150.0,0.00022668,2]
[313427787,1707337632014,-150.0,0.00022668,2]
[313427788,1707337632038,-150.0,0.00022668,2]
[313427789,1707337632058,-150.0,0.00022668,2]
[313427790,1707337632077,-150.0,0.00022668,2]
[313427791,1707337632097,-150.0,0.00022668,2]
[313427792,1707337632117,-150.0,0.00022668,2]
[313427793,1707337632136,-152.65343503,0.00022668,2]
[313427794,1707337632156,-499.99,0.00022797,2]
[313427795,1707337632176,-2781.1058,0.00022799,2]
[313427796,1707337632195,-39410.0927,0.00022899,2]
[313427797,1707337632215,-1901.32518703,0.00023,2]
[313427798,1707337632237,-175.33,0.00023881,2]
[313427799,1707337632257,-210.0,0.00024824,2]
[313427800,1707337632278,-350.0,0.00025,3]
[313427801,1707337632298,-4444.45,0.00025,2]
[313427802,1707337632317,-202.77097058,0.00025,2]
[313427803,1707337632336,-500.0,0.00027,7]
[313427804,1707337632356,-270.0,0.00027306,2]
[313427805,1707337632375,-222.98,0.00028546,2]
[313427806,1707337632394,-165.8,0.00028546,2]
[313427807,1707337632413,-181.58,0.00028797,2]
[313427808,1707337632432,-200.0,0.00029648,2]
[313427809,1707337632453,-152.52,0.00029664,2]
[313427810,1707337632473,-279.85,0.0002972,2]
[313427811,1707337632493,-229.11,0.00029746,2]
[313427812,1707337632514,-200.0,0.00029751,2]
[313427813,1707337632535,-250.0,0.00029903,2]
[313427814,1707337632554,-170.75,0.00030193,2]
[313427815,1707337632573,-13070.0,0.000305,2]
[313427816,1707337632591,-341.87083974,0.00030501,2]
[313427817,1707337632612,-192.51,0.00030617,2]
[313427818,1707337632630,-150.0,0.00030816,2]
[313427819,1707337632651,-150.0,0.00031047,2]
[313427820,1707337632672,-2000.0,0.00031305,2]
[313427821,1707337632692,-201.68,0.00031424,2]
[313427822,1707337632712,-271.09,0.00031553,2]
[313427823,1707337632732,-219.70970844,0.00031556,5]
[313427824,1707337632754,-158.08,0.0003157,2]
[313427825,1707337632773,-150.0,0.00031572,2]
[313427826,1707337632795,-250.0,0.00031572,2]
[313427827,1707337632816,-10320.0542,0.00031633,2]
[313427828,1707337632835,-250.0,0.00031656,2]
[313427829,1707337632856,-158.08,0.00031666,2]
[313427830,1707337632876,-200.0,0.00031707,2]
[313427831,1707337632896,-7942.57,0.00031711,2]
[313427832,1707337632917,-1244.37,0.00031734,2]
[313427833,1707337632940,-158.08,0.00031763,2]
[313427834,1707337632963,-158.08,0.0003186,2]
[313427835,1707337632986,-158.08,0.00031957,2]
[313427836,1707337633008,-229.11,0.0003201,2]
[313427837,1707337633033,-158.08,0.00032053,2]
[313427838,1707337633053,-158.08,0.0003215,2]
[313427839,1707337633074,-158.08,0.00032247,2]
[313427840,1707337633093,-166.95,0.00032249,2]
[313427841,1707337633113,-158.08,0.00032344,2]
[313427842,1707337633134,-8785.6691141,0.00032347,2]
[313427844,1707337636096,-15114.3308859,0.00032347,2]
[313427845,1707337636116,-158.08,0.0003244,2]
[313427846,1707337636136,-158.08,0.00032537,2]
[313427847,1707337636155,-158.08,0.00032634,2]
[313427848,1707337636174,-150.24,0.00032692,2]
[313427849,1707337636192,-158.08,0.00032731,2]
[313427850,1707337636212,-205.0,0.00032758,2]
[313427851,1707337636231,-158.08,0.00032827,2]
[313427852,1707337636249,-3667.82857,0.00032876,14]
[313427853,1707337636270,-474.12211748,0.00032876,6]
[313427854,1707337636295,-200.99223256,0.00032876,5]
[313427855,1707337636317,-490.11786111,0.00032876,6]
[313427856,1707337636338,-848.50495119,0.00032876,7]
[313427857,1707337636359,-151.1587243,0.00032876,5]
[313427858,1707337636379,-158.08,0.00032924,2]
[313427859,1707337636399,-158.08,0.00033021,2]
[313427860,1707337636419,-158.08,0.00033118,2]
[313427861,1707337636440,-271.09,0.00033197,2]
[313427862,1707337636459,-158.08,0.00033215,2]
[313427863,1707337636478,-435.60617142,0.0003325,2]
[313427864,1707337636502,-4106.66570321,0.00033324,10]
[313427865,1707337636525,-3378.78598142,0.00033324,10]
[313427866,1707337637089,-5558.26356092,0.00033324,10]
[313427867,1707337638092,-37732.94397951,0.00033324,10]
[313427868,1707337638117,-1398.20894825,0.00033324,10]
[313427869,1707337638155,-186.59,0.00033354,2]
[313427870,1707337638177,-192.51,0.00033356,120]
[313427871,1707337638200,-219.70970838,0.00033462,6]
[313427872,1707337638221,-1546.84012333,0.00033598,2]
[313427873,1707337638242,-153.86,0.000338,2]
[313427874,1707337638265,-189.72,0.000338,2]
[313427875,1707337638289,-189.72,0.000338,2]
[313427876,1707337638311,-189.72,0.000338,2]
[313427877,1707337638333,-189.72,0.000338,2]
[313427878,1707337638354,-189.72,0.000338,2]
[313427879,1707337638375,-189.72,0.000338,2]
[313427880,1707337638397,-189.72,0.000338,2]
[313427881,1707337638419,-189.72,0.000338,2]
[313427882,1707337638443,-189.72,0.000338,2]
[313427883,1707337638464,-189.72,0.000338,2]
[313427884,1707337638486,-189.72,0.000338,2]
[313427885,1707337638508,-189.72,0.000338,2]
[313427886,1707337638531,-189.72,0.000338,2]
[313427887,1707337638553,-189.72,0.000338,2]
[313427888,1707337638583,-189.72,0.000338,2]
[313427889,1707337638603,-189.72,0.000338,2]
[313427890,1707337638629,-189.72,0.000338,2]
[313427891,1707337638651,-189.72,0.000338,2]
[313427892,1707337638673,-189.72,0.000338,2]
[313427893,1707337638696,-189.72,0.000338,2]
[313427894,1707337638718,-760.0,0.00033822,2]
[313427895,1707337638740,-177.04,0.00034,2]
[313427896,1707337638761,-200.0,0.00034165,2]
[313427897,1707337638785,-229.11,0.00034274,2]
[313427898,1707337638806,-1425.16924444,0.00034286,2]
[313427899,1707337638832,-1425.16924444,0.00034536,2]
[313427900,1707337638853,-191.85082114,0.00034548,2]
[313427901,1707337638873,-399.0,0.0003465,2]
[313427902,1707337638894,-211.3961839,0.0003479,2]
[313427903,1707337638913,-200.0,0.00034825,2]
[313427904,1707337638936,-271.09,0.0003484,2]
[313427905,1707337638958,-81229.7321102,0.0003489,2]
[313427906,1707337639479,-18770.2678898,0.0003489,2]
[313427907,1707337639501,-6165.2711,0.0003489,2]
[313427908,1707337639522,-283.83163888,0.00034898,4]
[313427909,1707337639544,-500.0,0.00034898,2]
[313427910,1707337639566,-137.52961498,0.000349,2]
[313427911,1707337639610,-20798.88687349,0.000349,2]
[313427913,1707337662033,95196.01138508,0.00020398,2]
[313427918,1707337733690,1117.5409,0.00022468,2]
[313427919,1707337741001,28853.5748,0.00022468,2]
[313427920,1707337742526,95196.01138508,0.00020398,2]
[313427922,1707337764530,49597.12193163,0.00020398,2]
[313427924,1707337784515,49597.12193163,0.00020398,2]
[313427934,1707337806681,49597.12193163,0.00020398,2]
[313427947,1707337822524,1388.0,0.00020398,2]
[313427948,1707337822554,48209.12193163,0.00020398,2]
[313427974,1707337834554,-525.93493844,0.00024998,2]
[313427975,1707337834564,-208.13052769,0.00024999,2]
[313427976,1707337834578,-10.74577351,0.00024999,2]
[313427977,1707337834587,-435.09570165,0.00025,2]
[313427978,1707337834597,-155.0,0.00028449,2]
[313427979,1707337834606,-500.0,0.0003,2]
[313427981,1707337834616,-2514.09221827,0.0003161,4]
[313427983,1707337834628,-3948.75810796,0.0003161,4]
[313427985,1707337834637,-2790.99850459,0.0003161,4]
[313427987,1707337834647,-303.34283144,0.0003161,2]
[313427989,1707337834656,-441.15799748,0.0003161,4]
[313427991,1707337834667,-1049.36025505,0.0003161,4]
[313427993,1707337834676,-363.04147037,0.0003161,4]
[313427995,1707337834685,-172.54144566,0.0003161,4]
[313427997,1707337834695,-944.71074226,0.00031611,4]
[313427999,1707337834704,-761.74549612,0.00031611,4]
[313428001,1707337834713,-266.46430983,0.00031611,4]
[313428003,1707337834724,-44673.7352657,0.00031612,2]
[313428007,1707337834748,-1366.42370063,0.00031612,2]
[313428009,1707337834759,-824.0,0.00031612,2]
[313428011,1707337834770,-254.9375,0.00031612,2]
[313428014,1707337834786,-52880.90353367,0.00031612,2]
[313428016,1707337834795,-194.74,0.00032374,2]
[313428018,1707337834804,-153.87,0.000338,2]
[313428020,1707337834813,-153.33,0.000338,2]
[313428022,1707337834823,-153.33,0.000338,2]
[313428024,1707337834832,-153.33,0.000338,2]
[313428026,1707337834841,-153.33,0.000338,2]
[313428028,1707337834851,-153.33,0.000338,2]
[313428030,1707337834861,-153.33,0.000338,2]
[313428032,1707337834870,-153.33,0.000338,2]
[313428034,1707337834879,-153.33,0.000338,2]
[313428037,1707337834889,-153.33,0.000338,2]
[313428040,1707337834898,-153.33,0.000338,2]
[313428042,1707337834908,-153.33,0.000338,2]
[313428045,1707337834919,-153.33,0.000338,2]
[313428048,1707337834928,-153.33,0.000338,2]
[313428051,1707337834937,-153.33,0.000338,2]
[313428052,1707337834947,-153.33,0.000338,2]
[313428055,1707337834956,-153.33,0.000338,2]
[313428058,1707337834966,-153.33,0.000338,2]
[313428060,1707337834976,-153.33,0.000338,2]
[313428062,1707337834986,-153.33,0.000338,2]
[313428064,1707337834995,-150.0,0.0003386,2]
[313428066,1707337835005,-152.38460818,0.00034,2]
[313428068,1707337835015,-608.0,0.00034388,2]
[313428070,1707337835025,-194.74,0.00034638,2]
[313428072,1707337835035,-1940.97222,0.0003465,2]
[313428074,1707337835044,-1198.68009274,0.0003465,14]
[313428076,1707337835054,-500.0,0.00034752,7]
[313428078,1707337835064,-269.58359667,0.00034752,4]
[313428080,1707337835074,-1045.60631986,0.00034752,2]
[313428082,1707337835084,-293.16642242,0.00034752,4]
[313428084,1707337835094,-157.64667304,0.00034753,4]
[313428086,1707337835103,-162.65,0.00034754,2]
[313428088,1707337835113,-20009.36979801,0.00034754,2]
[313428093,1707337835152,-3549.69383029,0.00034754,2]
[313428100,1707337835241,-340.9363717,0.00034754,2]
[313428101,1707337835251,-9.0636283,0.000348,7]
[313428102,1707337835263,-203.79259489,0.000348,7]
[313428103,1707337835273,-114.22245156,0.00034889,2]
[313428104,1707337835285,-544.127513,0.00034889,2]
[313428105,1707337835297,-543.83,0.00034889,2]
[313428106,1707337835350,-243797.82003544,0.00034889,2]
[313428107,1707337835361,-13728.95531153,0.000349,2]
[313428108,1707337835370,-1000.0,0.000349,2]
[313428109,1707337835380,-500.0,0.000349,2]
[313428110,1707337835390,-264.60426373,0.000349,7]
[313428111,1707337835399,-1186.1685,0.000349,2]
[313428112,1707337835409,-164.0,0.000349,2]
[313428113,1707337835419,-1672.26027537,0.000349,7]
[313428114,1707337835428,-211.3961839,0.000349,2]
[313428115,1707337835438,-153.51026162,0.000349,2]
[313428116,1707337835447,-1972.26398531,0.000349,2]
[313428117,1707337835457,-200.0,0.000349,2]
[313428118,1707337835467,-595.00126732,0.000349,2]
[313428119,1707337835480,-361.91843692,0.000349,2]
[313428120,1707337835491,-157.25879482,0.000349,7]
[313428121,1707337835500,-2176.23640658,0.000349,2]
[313428122,1707337835510,-1017.42719588,0.000349,2]
[313428123,1707337835519,-548.75807041,0.000349,2]
[313428124,1707337835529,-1210.34430869,0.000349,2]
[313428125,1707337835538,-423.94434941,0.000349,8]
[313428126,1707337835547,-171.84065556,0.000349,24]
[313428127,1707337835557,-102080.304569,0.00034989,8]
[313428128,1707337835567,-188.86481217,0.0003499,2]
[313428129,1707337835576,-1054.0465193,0.00034998,4]
[313428130,1707337835586,-1044.99592506,0.00034998,4]
[313428131,1707337835596,-646.63739048,0.00034998,4]
[313428132,1707337835606,-191.56467231,0.00034998,4]
[313428133,1707337835616,-400.0,0.00034998,2]
[313428134,1707337835627,-3408.52114293,0.00034998,4]
[313428135,1707337835637,-208.48396775,0.00034998,4]
[313428136,1707337835646,-290.88387258,0.00034998,4]
[313428137,1707337835656,-150.0,0.00034999,30]
[313428138,1707337835666,-150.0,0.00034999,30]
[313428139,1707337835675,-150.0,0.00034999,30]
[313428140,1707337835685,-150.0,0.00034999,30]
[313428141,1707337835695,-156.20126122,0.00034999,4]
[313428142,1707337835705,-150.0,0.00034999,2]
[313428143,1707337835715,-150.0,0.00034999,2]
[313428144,1707337835725,-150.0,0.00034999,2]
[313428145,1707337835798,-150.0,0.00034999,2]
[313428146,1707337835807,-500.0,0.00034999,15]
[313428147,1707337835817,-186.98175718,0.00034999,15]
[313428148,1707337835826,-477.0510225,0.00034999,15]
[313428149,1707337835835,-500.0,0.00034999,15]
[313428150,1707337835845,-365.69247989,0.00034999,15]
[313428151,1707337835855,-500.0,0.00034999,15]
[313428152,1707337835864,-452.20446566,0.00034999,15]
[313428153,1707337835873,-432.44797216,0.00034999,15]
[313428154,1707337835882,-500.0,0.00034999,15]
[313428155,1707337835892,-166.36606504,0.00034999,15]
[313428156,1707337835901,-500.0,0.00034999,15]
[313428157,1707337835911,-500.0,0.00034999,15]
[313428158,1707337835920,-268.55290074,0.00034999,15]
[313428159,1707337835929,-585569.09001675,0.00034999,3]
[313428160,1707337835939,-73281.91751517,0.00035,7]
[313428161,1707337835952,-56185.88809719,0.00035,7]
[313428176,1707337839523,-401206.22871061,0.00035,7]
[313428177,1707337839587,-1088.16047109,0.00035,7]
[313428178,1707337839650,-52814.28275982,0.00035,7]
[313428179,1707337839663,-648614.96729423,0.00035,7]
[313428180,1707337839675,-396537.1772054,0.00035,7]
[313428181,1707337839687,-30318.89456937,0.00035,7]
[313428182,1707337839698,-35585.92025118,0.00035,7]
[313428183,1707337839710,-2368.75610913,0.00035,7]
[313428184,1707337839736,-2078.97410761,0.00035,7]
[313428185,1707337839765,-67921.7583824,0.00035,7]
[313428186,1707337839777,-10160.63382453,0.00035,7]
[313428187,1707337839788,-65698.10307647,0.00035,7]
[313428188,1707337839800,-18888.74141753,0.00035,7]
[313428189,1707337839811,-29099.33022232,0.00035,7]
[313428190,1707337839834,-580.4,0.00035,7]
[313428192,1707337839846,-173579.29630789,0.00035,7]
[313428194,1707337839854,-427.177209,0.00035,2]
[313428196,1707337839863,-810.50049244,0.00035,2]
[313428198,1707337839873,-9093.890229,0.00035,2]
[313428199,1707337839882,-1425.16924445,0.00035152,2]
[313428201,1707337839891,-205.0,0.00035164,2]
[313428203,1707337839900,-167933.5592412,0.00035311,2]
[313428206,1707337839916,-12494.6803943,0.00035311,2]
[313428363,1707337841416,-1398.71984024,0.00034999,4]
[313428365,1707337841426,-1031.6274134,0.00035311,2]
[313428367,1707337841435,-1187.24,0.00035616,2]
[313428369,1707337841444,-1672.26027532,0.00035809,8]
[313428371,1707337841454,-175.33,0.00035821,2]
[313428373,1707337841463,-1995.2331117,0.00035888,30]
[313428375,1707337841474,-153.51026156,0.00036041,2]
[313428377,1707337841483,-212.85622318,0.00036381,7]
[313428379,1707337841494,-1210.34430861,0.00036469,2]
[313428381,1707337841503,-249.10158996,0.0003649,10]
[313428383,1707337841512,-1672.26027532,0.00036718,9]
[313428385,1707337841521,-162.65,0.00036809,2]
[313428387,1707337841531,-150.0,0.00036834,2]
[313428389,1707337841540,-194.74,0.00036902,2]
[313428391,1707337841548,-1187.24,0.00036934,2]
[313428393,1707337841557,-1940.97223,0.0003715,2]
[313428395,1707337841567,-153.51026156,0.00037183,2]
[313428397,1707337841576,-1000.0,0.000373,2]
[313428399,1707337841586,-264.60426371,0.000374,10]
[313428401,1707337841595,-1672.26027532,0.00037627,10]
[313428403,1707337841604,-800.0,0.00037636,5]
[313428405,1707337841613,-171.84065553,0.00037642,28]
[313428407,1707337841622,-150.0,0.00037879,30]
[313428409,1707337841632,-150.0,0.00037879,30]
[313428411,1707337841641,-150.0,0.00037879,30]
[313428413,1707337841650,-150.0,0.00037879,30]
[313428415,1707337841660,-130873.43992804,0.0003788,2]
[313428419,1707337841684,-20996.7393409,0.0003788,2]
[313428421,1707337841693,-188.86481217,0.0003789,2]
[313428422,1707337841702,-150.0,0.00037899,30]
[313428437,1707337841824,-150.0,0.00037899,30]
[313428440,1707337841843,-150.0,0.00037899,30]
[313428442,1707337841853,-150.0,0.00037899,2]
[313428444,1707337841863,-151.78609959,0.00037899,2]
[313428446,1707337841872,-4506.61498118,0.000379,7]
[313428448,1707337841881,-42820.55163372,0.000379,3]
[313428454,1707337841927,-4386.0,0.000379,3]
[313428456,1707337841938,-44075.1588,0.000379,3]
[313428460,1707337841965,-879.98,0.000379,3]
[313428462,1707337841978,-138375.55001508,0.000379,3]